{"text_format":"1","workbook":"xlsx","n_sheets":2,"sheets":["الشهرى","اليومى"],"not_rendered":{"charts":0,"images":0,"macros":0,"external_links":0,"defined_names":0,"comments":0,"pivot_tables":0},"unopened":[],"bounds":{"document_bytes":16777216,"sheet_cells":100000,"rows_first":2000,"rows_last":500,"rows_between":2000,"halvings":0,"cell_chars":16384,"cell_head_chars":4096},"cells_cut":0,"cells_raw":0,"read":"whole","date_system":"1900"}

{"sheet":"الشهرى","index":0,"n_rows":36,"n_cols":13,"rows_kept":36,"cut":false,"hidden":false,"merged":[[2,11,4,11],[2,7,4,7],[2,6,4,6],[2,12,4,12],[0,10,0,12],[1,9,1,12],[0,2,0,7],[1,2,1,5],[2,8,4,8],[2,9,4,9],[2,10,4,10],[2,2,4,2],[2,3,4,3],[2,4,4,4],[2,5,4,5]]}
[]
[null,null,"شهر مارس 2020"]
[null,null," تتراسيكلين مرهم عين","جنتاميسين كريم للجلد","تيربنافين كريم","تتراسيكلين مرهم جلد","جنتاميسين قطرة عين","نافازولين نقط","أوفلوكساسين نقط","ماغنيسيوم أكياس","كولشيسين أكياس","أملاح جفاف"]
[]
[]
[null,null,null,null,null,null,null,null,null,null,null,null,1]
[null,null,null,null,null,null,null,null,null,null,null,null,2]
[null,null,null,null,null,null,null,null,null,null,null,null,3]
[null,null,null,null,null,null,null,null,null,null,null,null,4]
[null,null,null,null,null,null,null,null,null,null,null,null,5]
[null,null,null,null,null,null,null,null,null,null,null,null,6]
[null,null,null,null,null,null,null,null,null,null,null,null,7]
[null,null,null,null,null,null,null,null,null,null,null,null,8]
[null,null,null,null,null,null,null,null,null,null,null,null,9]
[null,null,null,null,null,null,null,null,null,null,null,null,10]
[null,null,null,null,null,null,null,null,null,null,null,null,11]
[null,null,null,null,null,null,null,null,null,null,null,null,12]
[null,null,null,null,null,null,null,null,null,null,null,null,13]
[null,null,null,null,null,null,null,null,null,null,null,null,14]
[null,null,null,null,null,null,null,null,null,null,null,null,15]
[null,null,null,null,null,null,null,null,null,null,null,null,16]
[null,null,null,null,null,null,null,null,null,null,null,null,17]
[null,null,null,null,null,null,null,null,null,null,null,null,18]
[null,null,null,null,null,null,null,null,null,null,null,null,19]
[null,null,null,null,null,null,null,null,null,null,null,null,20]
[null,null,null,null,null,null,null,null,null,null,null,null,21]
[null,null,null,null,null,null,null,null,null,null,null,null,22]
[null,null,null,null,null,null,null,null,null,null,null,null,23]
[null,null,null,null,null,null,null,null,null,null,null,null,24]
[null,null,null,null,null,null,null,null,null,null,null,null,25]
[null,null,null,null,null,null,null,null,null,null,null,null,26]
[null,null,null,null,null,null,null,null,null,null,null,null,27]
[null,null,null,null,null,null,null,null,null,null,null,null,28]
[null,null,null,null,null,null,null,null,null,null,null,null,29]
[null,null,null,null,null,null,null,null,null,null,null,null,30]
[null,null,null,null,null,null,null,null,null,null,null,null,31]

{"sheet":"اليومى","index":1,"n_rows":34,"n_cols":17,"rows_kept":34,"cut":false,"hidden":false,"merged":[[8,2,17,12],[0,2,0,7],[0,10,0,12],[1,2,1,5],[1,9,1,12],[2,2,4,2],[2,3,4,3],[2,4,4,4],[2,5,4,5],[2,6,4,6],[2,7,4,7],[2,12,5,12],[2,8,4,8],[2,9,4,9],[2,10,4,10],[2,11,4,11]]}
[]
[null,null,"اليومى"]
[null,null," تتراسيكلين مرهم عين","جنتاميسين كريم للجلد","تيربنافين كريم","تتراسيكلين مرهم جلد","جنتاميسين قطرة عين","نافازولين نقط","أوفلوكساسين نقط","ماغنيسيوم أكياس","كولشيسين أكياس","أملاح جفاف",null,null,"اليوم"]
[null,null,null,null,null,null,null,null,null,null,null,null,null,null,1,null,1]
[null,null,null,null,null,null,null,null,null,null,null,null,null,null,null,null,{"$f":"Q4+1","v":2}]
[null,null,14,15,12,9,2,6,3,2,3,5,null,null,null,null,{"$f":"Q5+1","v":3}]
[null,null,null,null,null,null,null,null,null,null,null,null,null,null,null,null,4]
[null,null,null,null,null,null,null,null,null,null,null,null,null,null,null,null,5]
[null,null,"أريد ترحيل البيانات من هذا الشيت بشكل يومى عند اختيار اليوم من القائمة المنسدلة وترحيلها إلى الشيت الشهرى لنفس اليوم , وتفريغ هذا الشيت كل يوم للكتابة فيه من جديد فى اليوم التالى",null,null,null,null,null,null,null,null,null,null,null,null,null,6]
[null,null,null,null,null,null,null,null,null,null,null,null,null,null,null,null,7]
[null,null,null,null,null,null,null,null,null,null,null,null,null,null,null,null,8]
[null,null,null,null,null,null,null,null,null,null,null,null,null,null,null,null,9]
[null,null,null,null,null,null,null,null,null,null,null,null,null,null,null,null,10]
[null,null,null,null,null,null,null,null,null,null,null,null,null,null,null,null,11]
[null,null,null,null,null,null,null,null,null,null,null,null,null,null,null,null,12]
[null,null,null,null,null,null,null,null,null,null,null,null,null,null,null,null,13]
[null,null,null,null,null,null,null,null,null,null,null,null,null,null,null,null,14]
[null,null,null,null,null,null,null,null,null,null,null,null,null,null,null,null,15]
[null,null,null,null,null,null,null,null,null,null,null,null,null,null,null,null,16]
[null,null,null,null,null,null,null,null,null,null,null,null,null,null,null,null,17]
[null,null,null,null,null,null,null,null,null,null,null,null,null,null,null,null,18]
[null,null,null,null,null,null,null,null,null,null,null,null,null,null,null,null,19]
[null,null,null,null,null,null,null,null,null,null,null,null,null,null,null,null,20]
[null,null,null,null,null,null,null,null,null,null,null,null,null,null,null,null,21]
[null,null,null,null,null,null,null,null,null,null,null,null,null,null,null,null,22]
[null,null,null,null,null,null,null,null,null,null,null,null,null,null,null,null,23]
[null,null,null,null,null,null,null,null,null,null,null,null,null,null,null,null,24]
[null,null,null,null,null,null,null,null,null,null,null,null,null,null,null,null,25]
[null,null,null,null,null,null,null,null,null,null,null,null,null,null,null,null,26]
[null,null,null,null,null,null,null,null,null,null,null,null,null,null,null,null,27]
[null,null,null,null,null,null,null,null,null,null,null,null,null,null,null,null,28]
[null,null,null,null,null,null,null,null,null,null,null,null,null,null,null,null,29]
[null,null,null,null,null,null,null,null,null,null,null,null,null,null,null,null,30]
[null,null,null,null,null,null,null,null,null,null,null,null,null,null,null,null,31]